[Event "Live Chess"]
[Site "Chess.com"]
[Date "2011.01.05"]
[Round "-"]
[White "VashishtBhatt"]
[Black "hipposcottimus"]
[Result "0-1"]
[CurrentPosition "7k/6p1/3b3p/4q3/3R3P/6P1/5PK1/8 w - -"]
[Timezone "UTC"]
[ECO "C45"]
[ECOUrl "https://www.chess.com/openings/Scotch-Game-3...d6"]
[UTCDate "2011.01.05"]
[UTCTime "19:43:03"]
[WhiteElo "1200"]
[BlackElo "1430"]
[TimeControl "600"]
[Termination "hipposcottimus won on time"]
[StartTime "19:43:03"]
[EndDate "2011.01.05"]
[EndTime "20:01:14"]
[Link "https://www.chess.com/game/live/84557259"]

1. e4 {[%clk 0:10:00]} 1... e5 {[%clk 0:10:00]} 2. Nf3 {[%clk 0:09:57.6]} 2... Nc6 {[%clk 0:09:58.7]} 3. d4 {[%clk 0:09:52]} 3... d6 {[%clk 0:09:49.6]} 4. d5 {[%clk 0:09:49.7]} 4... Nce7 {[%clk 0:09:48.1]} 5. Nc3 {[%clk 0:09:46.5]} 5... f5 {[%clk 0:09:43.3]} 6. exf5 {[%clk 0:09:31.7]} 6... Bxf5 {[%clk 0:09:42.8]} 7. Bb5+ {[%clk 0:09:24.6]} 7... c6 {[%clk 0:09:37.3]} 8. Ba4 {[%clk 0:09:21.8]} 8... Nf6 {[%clk 0:09:33.4]} 9. dxc6 {[%clk 0:09:17.1]} 9... Nxc6 {[%clk 0:09:27.3]} 10. Bg5 {[%clk 0:08:25.9]} 10... Be7 {[%clk 0:09:18.9]} 11. O-O {[%clk 0:08:12.8]} 11... Bg4 {[%clk 0:09:13.3]} 12. Nd5 {[%clk 0:07:26.6]} 12... Nxd5 {[%clk 0:08:46.5]} 13. Qxd5 {[%clk 0:07:24.4]} 13... Bxf3 {[%clk 0:08:34.1]} 14. Qxf3 {[%clk 0:06:59.6]} 14... Bxg5 {[%clk 0:08:28.1]} 15. Bxc6+ {[%clk 0:06:55.1]} 15... bxc6 {[%clk 0:08:26.8]} 16. Qxc6+ {[%clk 0:06:52.4]} 16... Kf7 {[%clk 0:08:25.5]} 17. Qd5+ {[%clk 0:06:47.4]} 17... Ke7 {[%clk 0:08:21.9]} 18. Rad1 {[%clk 0:06:24.1]} 18... Re8 {[%clk 0:07:21.8]} 19. Qb7+ {[%clk 0:06:10.6]} 19... Kf8 {[%clk 0:07:17.9]} 20. Qb4 {[%clk 0:06:02.4]} 20... Be7 {[%clk 0:07:15.3]} 21. Qb3 {[%clk 0:05:37.7]} 21... Rb8 {[%clk 0:07:07.2]} 22. Qh3 {[%clk 0:05:30.8]} 22... Kg8 {[%clk 0:07:02.9]} 23. Qe6+ {[%clk 0:05:20.8]} 23... Kh8 {[%clk 0:06:57.5]} 24. Qf7 {[%clk 0:05:05.8]} 24... Bf6 {[%clk 0:06:47.2]} 25. Qxa7 {[%clk 0:04:52.3]} 25... Rxb2 {[%clk 0:06:45.1]} 26. Qa6 {[%clk 0:04:27]} 26... d5 {[%clk 0:06:33.4]} 27. c3 {[%clk 0:04:16]} 27... Rc2 {[%clk 0:05:59.9]} 28. Rd3 {[%clk 0:04:10.4]} 28... e4 {[%clk 0:05:55.4]} 29. Rh3 {[%clk 0:04:06.3]} 29... Bxc3 {[%clk 0:05:47]} 30. Qc6 {[%clk 0:03:35.6]} 30... d4 {[%clk 0:05:28.5]} 31. Qc5 {[%clk 0:03:10.8]} 31... Re6 {[%clk 0:04:44.9]} 32. Qf5 {[%clk 0:03:04.5]} 32... Rg6 {[%clk 0:03:59.3]} 33. Qxg6 {[%clk 0:02:59.6]} 33... h6 {[%clk 0:03:53.2]} 34. Qxe4 {[%clk 0:02:47]} 34... Rxa2 {[%clk 0:03:44.1]} 35. g3 {[%clk 0:02:44.6]} 35... d3 {[%clk 0:03:36.6]} 36. Kg2 {[%clk 0:02:34.5]} 36... d2 {[%clk 0:03:34.3]} 37. Qf3 {[%clk 0:02:22]} 37... Ra1 {[%clk 0:03:25.3]} 38. Rd1 {[%clk 0:01:43]} 38... Rxd1 {[%clk 0:03:06.7]} 39. Qxd1 {[%clk 0:01:40]} 39... Qe8 {[%clk 0:02:59.7]} 40. Rh4 {[%clk 0:01:28.3]} 40... Qe1 {[%clk 0:02:56.5]} 41. Qxe1 {[%clk 0:00:22.4]} 41... dxe1=Q {[%clk 0:02:51.2]} 42. Rf4 {[%clk 0:00:19.9]} 42... Bb4 {[%clk 0:02:33.7]} 43. h4 {[%clk 0:00:06.3]} 43... Bd6 {[%clk 0:02:20.7]} 44. Rd4 {[%clk 0:00:01.4]} 44... Qe5 {[%clk 0:02:09.7]} 0-1

[Event "Live Chess"]
[Site "Chess.com"]
[Date "2011.01.05"]
[Round "-"]
[White "fujia"]
[Black "hipposcottimus"]
[Result "1-0"]
[CurrentPosition "r2qr1k1/ppp2ppp/5B2/7b/2B1P3/2PP2Q1/P1P2RPP/R5K1 b - -"]
[Timezone "UTC"]
[ECO "C23"]
[ECOUrl "https://www.chess.com/openings/Bishops-Opening-2...Nc6-3.Nc3"]
[UTCDate "2011.01.05"]
[UTCTime "03:51:37"]
[WhiteElo "1242"]
[BlackElo "1430"]
[TimeControl "600"]
[Termination "fujia won on time"]
[StartTime "03:51:37"]
[EndDate "2011.01.05"]
[EndTime "03:54:43"]
[Link "https://www.chess.com/game/live/84339905"]

1. e4 {[%clk 0:10:00]} 1... e5 {[%clk 0:10:00]} 2. Bc4 {[%clk 0:09:55.7]} 2... Nc6 {[%clk 0:09:57.1]} 3. Nc3 {[%clk 0:09:45.6]} 3... Nf6 {[%clk 0:09:50.6]} 4. d3 {[%clk 0:09:43.4]} 4... Bb4 {[%clk 0:09:46.6]} 5. f4 {[%clk 0:09:39.6]} 5... exf4 {[%clk 0:09:38.5]} 6. Bxf4 {[%clk 0:09:35.5]} 6... d6 {[%clk 0:09:38.2]} 7. Nf3 {[%clk 0:09:32.3]} 7... O-O {[%clk 0:09:24.3]} 8. O-O {[%clk 0:09:28.3]} 8... Bg4 {[%clk 0:09:20]} 9. Qe1 {[%clk 0:09:23.4]} 9... Re8 {[%clk 0:09:13.9]} 10. Qg3 {[%clk 0:09:19.2]} 10... Bxc3 {[%clk 0:09:00.8]} 11. bxc3 {[%clk 0:09:14.9]} 11... Ne5 {[%clk 0:08:42.8]} 12. Nxe5 {[%clk 0:09:05]} 12... dxe5 {[%clk 0:08:42.4]} 13. Bxe5 {[%clk 0:09:01.7]} 13... Be2 {[%clk 0:08:22.4]} 14. Rf2 {[%clk 0:08:51.2]} 14... Bh5 {[%clk 0:08:14.5]} 15. Bxf6 {[%clk 0:08:47.6]} 1-0

[Event "Live Chess"]
[Site "Chess.com"]
[Date "2011.01.05"]
[Round "-"]
[White "fantantric"]
[Black "hipposcottimus"]
[Result "1-0"]
[CurrentPosition "2kr1q1r/pppbn2p/1b4p1/1N3p2/B2Bp3/P3P3/2PP1PPP/R2QK2R w KQ -"]
[Timezone "UTC"]
[ECO "A00"]
[ECOUrl "https://www.chess.com/openings/Polish-Opening-1...e5-2.Bb2-f6"]
[UTCDate "2011.01.05"]
[UTCTime "03:28:23"]
[WhiteElo "1554"]
[BlackElo "1430"]
[TimeControl "300+5"]
[Termination "fantantric won by resignation"]
[StartTime "03:28:23"]
[EndDate "2011.01.05"]
[EndTime "03:34:40"]
[Link "https://www.chess.com/game/live/84336851"]

1. b4 {[%clk 0:05:00]} 1... e5 {[%clk 0:05:00]} 2. Bb2 {[%clk 0:05:02.1]} 2... f6 {[%clk 0:04:58.1]} 3. e3 {[%clk 0:05:02.9]} 3... Bxb4 {[%clk 0:05:00.4]} 4. Bd3 {[%clk 0:04:58.8]} 4... g6 {[%clk 0:04:47.8]} 5. Qg4 {[%clk 0:04:58]} 5... Ba5 {[%clk 0:04:39.4]} 6. Nc3 {[%clk 0:04:48]} 6... d5 {[%clk 0:04:41.6]} 7. Qd1 {[%clk 0:04:46.7]} 7... Nc6 {[%clk 0:04:39.2]} 8. a3 {[%clk 0:04:48]} 8... Bd7 {[%clk 0:04:29.8]} 9. Be2 {[%clk 0:04:23.1]} 9... Qe7 {[%clk 0:04:30.5]} 10. Nf3 {[%clk 0:04:26.3]} 10... O-O-O {[%clk 0:04:29.2]} 11. Nxd5 {[%clk 0:04:28.6]} 11... Qd6 {[%clk 0:04:24.6]} 12. Nc3 {[%clk 0:03:55.3]} 12... Qf8 {[%clk 0:04:19.4]} 13. Bb5 {[%clk 0:03:47.5]} 13... Nge7 {[%clk 0:04:21]} 14. Ba4 {[%clk 0:03:15.9]} 14... f5 {[%clk 0:04:23.4]} 15. Nb5 {[%clk 0:03:03.5]} 15... e4 {[%clk 0:04:21]} 16. Nfd4 {[%clk 0:03:05.3]} 16... Nxd4 {[%clk 0:04:17.2]} 17. Bxd4 {[%clk 0:03:04.3]} 17... Bb6 {[%clk 0:03:38.1]} 1-0

[Event "Live Chess"]
[Site "Chess.com"]
[Date "2011.01.05"]
[Round "-"]
[White "hipposcottimus"]
[Black "aj999999"]
[Result "1-0"]
[CurrentPosition "2r5/8/p4B1k/1p2P2R/3p2P1/P2B3P/1R6/7K b - -"]
[Timezone "UTC"]
[ECO "C00"]
[ECOUrl "https://www.chess.com/openings/French-Defense-Franco-Sicilian-Defense"]
[UTCDate "2011.01.05"]
[UTCTime "02:42:35"]
[WhiteElo "1436"]
[BlackElo "1314"]
[TimeControl "540"]
[Termination "hipposcottimus won by checkmate"]
[StartTime "02:42:35"]
[EndDate "2011.01.05"]
[EndTime "02:58:38"]
[Link "https://www.chess.com/game/live/84326934"]

1. e4 {[%clk 0:09:00]} 1... e6 {[%clk 0:09:00]} 2. d4 {[%clk 0:08:58]} 2... c5 {[%clk 0:08:58.3]} 3. Bb5 {[%clk 0:08:50.4]} 3... a6 {[%clk 0:08:56.8]} 4. Be2 {[%clk 0:08:42]} 4... d5 {[%clk 0:08:51.3]} 5. e5 {[%clk 0:08:40.4]} 5... Nc6 {[%clk 0:08:46.7]} 6. c3 {[%clk 0:08:38]} 6... cxd4 {[%clk 0:08:30.1]} 7. cxd4 {[%clk 0:08:33]} 7... Bb4+ {[%clk 0:08:26.6]} 8. Nc3 {[%clk 0:08:31.2]} 8... Qa5 {[%clk 0:08:08.3]} 9. Nf3 {[%clk 0:08:19.7]} 9... Bxc3+ {[%clk 0:08:06.7]} 10. bxc3 {[%clk 0:08:18.8]} 10... Qxc3+ {[%clk 0:07:59.4]} 11. Bd2 {[%clk 0:08:15]} 11... Qa3 {[%clk 0:07:45.5]} 12. O-O {[%clk 0:08:02.9]} 12... Qe7 {[%clk 0:07:36.3]} 13. Bg5 {[%clk 0:07:53.5]} 13... f6 {[%clk 0:07:29.4]} 14. exf6 {[%clk 0:07:45]} 14... Nxf6 {[%clk 0:07:28.1]} 15. Re1 {[%clk 0:07:33.4]} 15... Qd7 {[%clk 0:07:21.4]} 16. Ne5 {[%clk 0:07:21.8]} 16... Nxe5 {[%clk 0:07:16.8]} 17. dxe5 {[%clk 0:07:17.7]} 17... Ne4 {[%clk 0:07:09.1]} 18. f4 {[%clk 0:07:04.4]} 18... O-O {[%clk 0:07:06.2]} 19. Bf3 {[%clk 0:06:38.7]} 19... Nc3 {[%clk 0:07:03.3]} 20. Qd3 {[%clk 0:06:27.8]} 20... Qc6 {[%clk 0:06:54.8]} 21. Rec1 {[%clk 0:06:17.6]} 21... Qb5 {[%clk 0:05:48]} 22. Qxc3 {[%clk 0:06:09.6]} 22... Bd7 {[%clk 0:05:45.8]} 23. Qe1 {[%clk 0:05:48.3]} 23... h6 {[%clk 0:05:29.1]} 24. Bh4 {[%clk 0:05:39.1]} 24... Rxf4 {[%clk 0:05:27.5]} 25. Qg3 {[%clk 0:05:35.2]} 25... Rf5 {[%clk 0:04:26]} 26. Bf6 {[%clk 0:05:30]} 26... Qb6+ {[%clk 0:04:12.6]} 27. Kh1 {[%clk 0:05:25.4]} 27... g5 {[%clk 0:04:09.9]} 28. Bg4 {[%clk 0:05:21.2]} 28... Rf4 {[%clk 0:03:47.2]} 29. Bh3 {[%clk 0:05:18.7]} 29... Bc6 {[%clk 0:03:32.5]} 30. Bxg5 {[%clk 0:05:16.4]} 30... Qf2 {[%clk 0:03:22.5]} 31. Bxf4+ {[%clk 0:05:07.9]} 31... Qxg3 {[%clk 0:03:20.9]} 32. Bxg3 {[%clk 0:05:06.6]} 32... Rf8 {[%clk 0:03:08.5]} 33. Bxe6+ {[%clk 0:05:01.7]} 33... Kg7 {[%clk 0:03:04.4]} 34. Bh4 {[%clk 0:04:57.3]} 34... Re8 {[%clk 0:02:51.5]} 35. Bf6+ {[%clk 0:04:54.7]} 35... Kg6 {[%clk 0:02:50.2]} 36. Bg4 {[%clk 0:04:35.3]} 36... h5 {[%clk 0:02:47.8]} 37. Be2 {[%clk 0:04:32.9]} 37... d4 {[%clk 0:02:37.4]} 38. Bd3+ {[%clk 0:04:31.5]} 38... Kh6 {[%clk 0:02:30.3]} 39. Rf1 {[%clk 0:04:25.3]} 39... Rg8 {[%clk 0:02:27]} 40. Rf2 {[%clk 0:03:55.4]} 40... b5 {[%clk 0:02:18.2]} 41. a3 {[%clk 0:03:53.8]} 41... Rg4 {[%clk 0:01:59.3]} 42. Raa2 {[%clk 0:03:48.8]} 42... h4 {[%clk 0:01:56.8]} 43. h3 {[%clk 0:03:38]} 43... Rg8 {[%clk 0:01:37.2]} 44. Bxh4 {[%clk 0:03:20]} 44... Bd5 {[%clk 0:01:30.4]} 45. Rab2 {[%clk 0:02:48.5]} 45... Re8 {[%clk 0:01:16]} 46. Bf6 {[%clk 0:02:42.6]} 46... Rg8 {[%clk 0:01:06.3]} 47. Rf4 {[%clk 0:02:41.1]} 47... Bf7 {[%clk 0:00:33.6]} 48. Rh4+ {[%clk 0:02:30.8]} 48... Bh5 {[%clk 0:00:31.7]} 49. g4 {[%clk 0:02:25.2]} 49... Rc8 {[%clk 0:00:02.2]} 50. Rxh5# {[%clk 0:02:20.2]} 1-0

[Event "Live Chess"]
[Site "Chess.com"]
[Date "2011.01.05"]
[Round "-"]
[White "JustinianP"]
[Black "hipposcottimus"]
[Result "1-0"]
[CurrentPosition "r3r1k1/pq4pp/1n6/2N1n3/1B2P1p1/PQ4P1/1P3P1P/2R1R1K1 b - -"]
[Timezone "UTC"]
[ECO "D02"]
[ECOUrl "https://www.chess.com/openings/Queens-Pawn-Opening-Zukertort-Variation"]
[UTCDate "2011.01.05"]
[UTCTime "01:54:04"]
[WhiteElo "1540"]
[BlackElo "1412"]
[TimeControl "240+4"]
[Termination "JustinianP won by resignation"]
[StartTime "01:54:04"]
[EndDate "2011.01.05"]
[EndTime "01:59:58"]
[Link "https://www.chess.com/game/live/84316687"]

1. Nf3 {[%clk 0:04:00]} 1... d5 {[%clk 0:04:00]} 2. d4 {[%clk 0:03:56.1]} 2... Bg4 {[%clk 0:04:02.7]} 3. e3 {[%clk 0:03:58.6]} 3... Nc6 {[%clk 0:04:04.6]} 4. c4 {[%clk 0:03:52.5]} 4... Nf6 {[%clk 0:03:58.1]} 5. cxd5 {[%clk 0:03:47.2]} 5... Nxd5 {[%clk 0:04:00.3]} 6. Be2 {[%clk 0:03:50.2]} 6... e6 {[%clk 0:04:01.3]} 7. O-O {[%clk 0:03:52.1]} 7... Bd6 {[%clk 0:04:01.6]} 8. a3 {[%clk 0:03:55]} 8... Nce7 {[%clk 0:04:03.6]} 9. Bd2 {[%clk 0:03:50.2]} 9... O-O {[%clk 0:04:03.7]} 10. Qc2 {[%clk 0:03:48]} 10... c6 {[%clk 0:03:53.6]} 11. Re1 {[%clk 0:03:44.5]} 11... f6 {[%clk 0:03:50.3]} 12. Nc3 {[%clk 0:03:46.2]} 12... Qc7 {[%clk 0:03:50.3]} 13. g3 {[%clk 0:03:43.2]} 13... c5 {[%clk 0:03:34.7]} 14. Rac1 {[%clk 0:03:34.2]} 14... b6 {[%clk 0:03:31.6]} 15. Nb5 {[%clk 0:03:35.6]} 15... Qb8 {[%clk 0:03:27.2]} 16. Nxd6 {[%clk 0:03:37.6]} 16... Qxd6 {[%clk 0:03:30]} 17. dxc5 {[%clk 0:03:37.1]} 17... Qc6 {[%clk 0:03:23]} 18. cxb6 {[%clk 0:03:27.3]} 18... Qxb6 {[%clk 0:03:25.5]} 19. Qd3 {[%clk 0:03:19.9]} 19... Qb7 {[%clk 0:03:16.9]} 20. e4 {[%clk 0:03:20.3]} 20... Nb6 {[%clk 0:02:59.4]} 21. Bb4 {[%clk 0:03:22.3]} 21... Rfe8 {[%clk 0:03:00.3]} 22. Nd4 {[%clk 0:03:19.9]} 22... f5 {[%clk 0:02:59.3]} 23. Bxg4 {[%clk 0:03:19.5]} 23... fxg4 {[%clk 0:03:00.6]} 24. Nxe6 {[%clk 0:03:21.5]} 24... Ng6 {[%clk 0:02:55.4]} 25. Nc5 {[%clk 0:03:12.6]} 25... Ne5 {[%clk 0:02:45.7]} 26. Qb3+ {[%clk 0:02:57.1]} 1-0

[Event "Live Chess"]
[Site "Chess.com"]
[Date "2011.01.04"]
[Round "-"]
[White "hipposcottimus"]
[Black "gavino210"]
[Result "1-0"]
[CurrentPosition "2r2r2/3p1kp1/p2Pp1p1/1pP2p2/1P1Q3P/P4Rq1/6P1/R5K1 b - -"]
[Timezone "UTC"]
[ECO "B20"]
[ECOUrl "https://www.chess.com/openings/Sicilian-Defense-Staunton-Cochrane-Variation-2...e6"]
[UTCDate "2011.01.04"]
[UTCTime "20:24:39"]
[WhiteElo "1417"]
[BlackElo "1546"]
[TimeControl "120+12"]
[Termination "hipposcottimus won by resignation"]
[StartTime "20:24:39"]
[EndDate "2011.01.04"]
[EndTime "20:36:23"]
[Link "https://www.chess.com/game/live/84234104"]

1. e4 {[%clk 0:02:00]} 1... c5 {[%clk 0:02:00]} 2. c4 {[%clk 0:02:10.1]} 2... e6 {[%clk 0:02:09]} 3. Nc3 {[%clk 0:02:20.6]} 3... a6 {[%clk 0:02:16.1]} 4. Nf3 {[%clk 0:02:27.2]} 4... Nc6 {[%clk 0:02:26]} 5. d3 {[%clk 0:02:34.4]} 5... Nge7 {[%clk 0:02:12.5]} 6. Bf4 {[%clk 0:02:42]} 6... Ng6 {[%clk 0:02:20.9]} 7. Bg3 {[%clk 0:02:53]} 7... Be7 {[%clk 0:02:25.9]} 8. e5 {[%clk 0:02:50.4]} 8... Nd4 {[%clk 0:02:25.4]} 9. Be2 {[%clk 0:02:51.4]} 9... Nf5 {[%clk 0:02:25.5]} 10. O-O {[%clk 0:02:56.7]} 10... Nxg3 {[%clk 0:02:34.8]} 11. fxg3 {[%clk 0:03:07.1]} 11... O-O {[%clk 0:02:42.1]} 12. d4 {[%clk 0:03:17.8]} 12... cxd4 {[%clk 0:02:41.9]} 13. Qxd4 {[%clk 0:03:25]} 13... Qc7 {[%clk 0:02:52.1]} 14. Ne4 {[%clk 0:03:23.5]} 14... f5 {[%clk 0:02:33.9]} 15. Nd6 {[%clk 0:03:20.2]} 15... Bxd6 {[%clk 0:02:02.8]} 16. exd6 {[%clk 0:03:28.7]} 16... Qc6 {[%clk 0:02:05.6]} 17. b4 {[%clk 0:03:05.6]} 17... b6 {[%clk 0:02:12.9]} 18. a3 {[%clk 0:03:11.1]} 18... Bb7 {[%clk 0:02:22.9]} 19. Rf2 {[%clk 0:03:08.4]} 19... Rac8 {[%clk 0:02:24.8]} 20. h4 {[%clk 0:02:50.5]} 20... b5 {[%clk 0:01:34.5]} 21. c5 {[%clk 0:02:45.2]} 21... Qe4 {[%clk 0:01:42.3]} 22. Qb2 {[%clk 0:02:32.8]} 22... Qg4 {[%clk 0:01:17.6]} 23. Ne5 {[%clk 0:02:22.7]} 23... Qxg3 {[%clk 0:01:25.3]} 24. Nxg6 {[%clk 0:01:55.3]} 24... hxg6 {[%clk 0:01:23.8]} 25. Qd4 {[%clk 0:01:33.8]} 25... Kf7 {[%clk 0:01:17.5]} 26. Bf3 {[%clk 0:01:39.9]} 26... Bxf3 {[%clk 0:01:15]} 27. Rxf3 {[%clk 0:01:50.8]} 1-0

[Event "Live Chess"]
[Site "Chess.com"]
[Date "2011.01.04"]
[Round "-"]
[White "hipposcottimus"]
[Black "OnceFreeRepublic"]
[Result "0-1"]
[CurrentPosition "r4k2/1pq1b2p/p1b1Qp1r/2p2P2/2Pp4/3P3P/PR4P1/5R1K b - -"]
[Timezone "UTC"]
[ECO "B20"]
[ECOUrl "https://www.chess.com/openings/Sicilian-Defense"]
[UTCDate "2011.01.04"]
[UTCTime "05:56:48"]
[WhiteElo "1405"]
[BlackElo "1438"]
[TimeControl "120+12"]
[Termination "OnceFreeRepublic won by resignation"]
[StartTime "05:56:48"]
[EndDate "2011.01.04"]
[EndTime "06:06:49"]
[Link "https://www.chess.com/game/live/84031884"]

1. e4 {[%clk 0:02:00]} 1... c5 {[%clk 0:02:00]} 2. Bb5 {[%clk 0:02:02.8]} 2... a6 {[%clk 0:02:03.3]} 3. Be2 {[%clk 0:02:09]} 3... Nc6 {[%clk 0:02:06.5]} 4. c4 {[%clk 0:02:13.8]} 4... Nf6 {[%clk 0:02:08.1]} 5. d3 {[%clk 0:02:23.1]} 5... e6 {[%clk 0:02:17.9]} 6. Nf3 {[%clk 0:02:31.6]} 6... d5 {[%clk 0:02:27.7]} 7. Bg5 {[%clk 0:02:36.3]} 7... Be7 {[%clk 0:02:31]} 8. Nc3 {[%clk 0:02:37.2]} 8... d4 {[%clk 0:01:57.8]} 9. e5 {[%clk 0:02:44.9]} 9... dxc3 {[%clk 0:02:01.1]} 10. exf6 {[%clk 0:02:51.3]} 10... gxf6 {[%clk 0:02:11.5]} 11. Bh6 {[%clk 0:02:58.8]} 11... cxb2 {[%clk 0:02:07.3]} 12. Rb1 {[%clk 0:03:08.2]} 12... Rg8 {[%clk 0:01:30.7]} 13. O-O {[%clk 0:03:08.4]} 13... e5 {[%clk 0:01:28.4]} 14. Kh1 {[%clk 0:03:05.5]} 14... Nd4 {[%clk 0:01:28.1]} 15. Rxb2 {[%clk 0:03:10.3]} 15... Qc7 {[%clk 0:00:58.6]} 16. Nxd4 {[%clk 0:02:28.5]} 16... exd4 {[%clk 0:01:05.6]} 17. f4 {[%clk 0:02:24.1]} 17... Rg6 {[%clk 0:01:09.9]} 18. f5 {[%clk 0:01:27.2]} 18... Rxh6 {[%clk 0:01:20]} 19. Bh5 {[%clk 0:01:33.8]} 19... Bd7 {[%clk 0:01:14.6]} 20. Qe2 {[%clk 0:01:38.5]} 20... Bc6 {[%clk 0:01:24.1]} 21. Bxf7+ {[%clk 0:01:22.8]} 21... Kxf7 {[%clk 0:01:27.5]} 22. Qe6+ {[%clk 0:01:33.4]} 22... Kf8 {[%clk 0:01:37.3]} 23. h3 {[%clk 0:01:33.1]} 0-1

[Event "Live Chess"]
[Site "Chess.com"]
[Date "2011.01.04"]
[Round "-"]
[White "pupochik"]
[Black "hipposcottimus"]
[Result "0-1"]
[CurrentPosition "1k1r2r1/p6p/1p6/5B2/P7/5bP1/2Rb1P1P/3R2K1 b - -"]
[Timezone "UTC"]
[ECO "D06"]
[ECOUrl "https://www.chess.com/openings/Queens-Gambit-Declined-Austrian-Variation"]
[UTCDate "2011.01.04"]
[UTCTime "05:38:14"]
[WhiteElo "1307"]
[BlackElo "1405"]
[TimeControl "600"]
[Termination "hipposcottimus won by resignation"]
[StartTime "05:38:14"]
[EndDate "2011.01.04"]
[EndTime "05:52:57"]
[Link "https://www.chess.com/game/live/84028482"]

1. d4 {[%clk 0:10:00]} 1... d5 {[%clk 0:10:00]} 2. c4 {[%clk 0:09:56.6]} 2... c5 {[%clk 0:09:58.6]} 3. b4 {[%clk 0:09:53.5]} 3... dxc4 {[%clk 0:09:39.1]} 4. bxc5 {[%clk 0:09:31.8]} 4... e5 {[%clk 0:09:27.5]} 5. Qa4+ {[%clk 0:09:23.9]} 5... Nc6 {[%clk 0:09:22.4]} 6. Nf3 {[%clk 0:08:50.9]} 6... exd4 {[%clk 0:08:55.1]} 7. Bb2 {[%clk 0:08:34.1]} 7... Bxc5 {[%clk 0:08:49.8]} 8. Qxc4 {[%clk 0:08:19.3]} 8... Bb4+ {[%clk 0:08:42.3]} 9. Nbd2 {[%clk 0:08:08.2]} 9... Be6 {[%clk 0:08:24.7]} 10. Qb5 {[%clk 0:07:41.2]} 10... Qb6 {[%clk 0:08:06]} 11. a4 {[%clk 0:07:21]} 11... Nf6 {[%clk 0:07:39.6]} 12. Bxd4 {[%clk 0:07:13.2]} 12... Qa5 {[%clk 0:07:12]} 13. Qxa5 {[%clk 0:06:54.2]} 13... Bxa5 {[%clk 0:07:01.7]} 14. Bxf6 {[%clk 0:06:51.6]} 14... gxf6 {[%clk 0:06:58.8]} 15. e3 {[%clk 0:06:47.9]} 15... O-O-O {[%clk 0:06:53.7]} 16. Bb5 {[%clk 0:06:12.5]} 16... Nb4 {[%clk 0:06:42.8]} 17. O-O {[%clk 0:06:01.8]} 17... Nc2 {[%clk 0:06:19.5]} 18. Rac1 {[%clk 0:05:56.5]} 18... Rhg8 {[%clk 0:05:03.1]} 19. Rxc2+ {[%clk 0:05:33.6]} 19... Kb8 {[%clk 0:05:00.2]} 20. Rb1 {[%clk 0:05:18.1]} 20... Bh3 {[%clk 0:04:42.7]} 21. g3 {[%clk 0:05:15.3]} 21... Bf5 {[%clk 0:04:38.2]} 22. e4 {[%clk 0:04:47.3]} 22... Bg4 {[%clk 0:04:32]} 23. Bc4 {[%clk 0:04:17.8]} 23... f5 {[%clk 0:04:13.9]} 24. Bd5 {[%clk 0:04:01.7]} 24... b6 {[%clk 0:03:56.5]} 25. Rbc1 {[%clk 0:03:19.6]} 25... fxe4 {[%clk 0:03:48.1]} 26. Bxe4 {[%clk 0:03:11.7]} 26... f5 {[%clk 0:03:37.8]} 27. Bd3 {[%clk 0:02:38.1]} 27... Bxf3 {[%clk 0:03:25.5]} 28. Bxf5 {[%clk 0:02:26.3]} 28... Bxd2 {[%clk 0:03:13.3]} 29. Rd1 {[%clk 0:02:18]} 0-1

[Event "Live Chess"]
[Site "Chess.com"]
[Date "2011.01.04"]
[Round "-"]
[White "Zafodbeeblebrox"]
[Black "hipposcottimus"]
[Result "0-1"]
[CurrentPosition "r1b3k1/pp2b3/4p3/3pP1N1/3P2p1/2P3P1/PPq4r/2BKRR2 w - -"]
[Timezone "UTC"]
[ECO "D00"]
[ECOUrl "https://www.chess.com/openings/Queens-Pawn-Opening-1...d5-2.e3-c5"]
[UTCDate "2011.01.04"]
[UTCTime "05:26:28"]
[WhiteElo "1284"]
[BlackElo "1399"]
[TimeControl "120+12"]
[Termination "hipposcottimus won by checkmate"]
[StartTime "05:26:28"]
[EndDate "2011.01.04"]
[EndTime "05:35:43"]
[Link "https://www.chess.com/game/live/84026326"]

1. d4 {[%clk 0:02:00]} 1... d5 {[%clk 0:02:00]} 2. e3 {[%clk 0:02:10.7]} 2... c5 {[%clk 0:02:07.3]} 3. Bd3 {[%clk 0:02:22]} 3... cxd4 {[%clk 0:02:17.2]} 4. exd4 {[%clk 0:02:31]} 4... Nc6 {[%clk 0:02:19]} 5. c3 {[%clk 0:02:42.1]} 5... f5 {[%clk 0:02:21.2]} 6. f4 {[%clk 0:02:53.4]} 6... e6 {[%clk 0:02:30.8]} 7. Nf3 {[%clk 0:03:03.5]} 7... Nf6 {[%clk 0:02:41.9]} 8. O-O {[%clk 0:03:12.8]} 8... Be7 {[%clk 0:02:52]} 9. Ne5 {[%clk 0:03:19.8]} 9... O-O {[%clk 0:03:03.7]} 10. Qf3 {[%clk 0:03:24.3]} 10... Bd6 {[%clk 0:03:03.7]} 11. Qh3 {[%clk 0:03:33.2]} 11... Nxe5 {[%clk 0:02:53.1]} 12. fxe5 {[%clk 0:03:41.7]} 12... Ng4 {[%clk 0:03:02.5]} 13. Qh5 {[%clk 0:03:39.8]} 13... Be7 {[%clk 0:03:07]} 14. h3 {[%clk 0:03:45.6]} 14... g6 {[%clk 0:03:05.5]} 15. Bh6 {[%clk 0:03:15]} 15... Rf7 {[%clk 0:03:05.5]} 16. Qxg6+ {[%clk 0:02:25.4]} 16... hxg6 {[%clk 0:03:10]} 17. hxg4 {[%clk 0:02:36.6]} 17... Rh7 {[%clk 0:03:14.1]} 18. Bf4 {[%clk 0:02:29.8]} 18... Rh4 {[%clk 0:03:13.4]} 19. Be2 {[%clk 0:02:32.5]} 19... fxg4 {[%clk 0:03:10.3]} 20. g3 {[%clk 0:02:40.6]} 20... Rh7 {[%clk 0:02:54.2]} 21. Bxg4 {[%clk 0:02:48.5]} 21... g5 {[%clk 0:03:02.9]} 22. Be3 {[%clk 0:02:52.4]} 22... Qe8 {[%clk 0:03:08.9]} 23. Nd2 {[%clk 0:03:02.4]} 23... Qg6 {[%clk 0:03:18.9]} 24. Nf3 {[%clk 0:03:07.8]} 24... Qe4 {[%clk 0:03:26.7]} 25. Rae1 {[%clk 0:03:12.3]} 25... Qxg4 {[%clk 0:03:35.9]} 26. Kf2 {[%clk 0:03:07]} 26... Qf5 {[%clk 0:03:25]} 27. Ke2 {[%clk 0:03:09.5]} 27... g4 {[%clk 0:03:28]} 28. Ng5 {[%clk 0:03:13.5]} 28... Rh2+ {[%clk 0:03:32.2]} 29. Kd1 {[%clk 0:03:19.1]} 29... Qb1+ {[%clk 0:03:38.4]} 30. Bc1 {[%clk 0:03:13.8]} 30... Qc2# {[%clk 0:03:47]} 0-1